fUST/lending_fUST_20250701
["ID","MTS","AMOUNT","RATE_DAILY","PERIOD"]
[368731021,1751333450740,-460.0,0.00019294,2]
[368731022,1751333450750,-460.0,0.00019294,2]
[368731023,1751333450759,-460.0,0.00019294,2]
[368731024,1751333450769,-412.30571877,0.00019294,2]
[368731025,1751333450779,-460.0,0.00019294,2]
[368731026,1751333450788,-460.0,0.00019294,2]
[368731027,1751333450798,-460.0,0.00019294,2]
[368731028,1751333450807,-2276.97223143,0.00019314,2]
[368731029,1751333450816,-460.0,0.00019314,2]
[368731030,1751333450826,-460.0,0.00019314,2]
[368731031,1751333450835,-460.0,0.00019314,2]
[368731032,1751333450844,-460.0,0.00019314,2]
[368731033,1751333450854,-460.0,0.00019315,2]
[368731034,1751333450863,-460.0,0.00019315,2]
[368731035,1751333450873,-460.0,0.00019315,2]
[368731036,1751333450882,-460.0,0.00019315,2]
[368731037,1751333450892,-460.0,0.00019315,2]
[368731038,1751333450902,-460.0,0.00019315,2]
[368731039,1751333450911,-460.0,0.00019315,2]
[368731040,1751333450920,-460.0,0.00019315,2]
[368731041,1751333450930,-527.90022015,0.00019315,2]
[368731042,1751333450940,-460.0,0.00019315,2]
[368731043,1751333450949,-460.0,0.00019315,2]
[368731044,1751333450959,-517.85775554,0.00019315,2]
[368731045,1751333450968,-460.0,0.00019469,2]
[368731046,1751333450978,-711.31,0.00019469,2]
[368731047,1751333450988,-460.0,0.00019469,2]
[368731048,1751333450998,-160.0,0.00019472,2]
[368731049,1751333451007,-160.0,0.00019472,2]
[368731050,1751333451016,-847.41730813,0.00019472,2]
[368731051,1751333451025,-160.0,0.00019472,2]
[368731052,1751333451035,-837.16779106,0.00019472,2]
[368731053,1751333451044,-10680.08875191,0.00019472,2]
[368731054,1751333451068,-1889.04356625,0.00019472,2]
[368731055,1751333451167,-160.0,0.00019472,2]
[368731056,1751333451177,-160.0,0.00019472,2]
[368731057,1751333451187,-230.31346914,0.00019472,2]
[368731058,1751333451196,-161.41344769,0.00019472,2]
[368731059,1751333451213,-53.58503866,0.00019472,2]
[368731060,1751333451222,-213.84631524,0.00019472,2]
[368731061,1751333451232,-1191.69,0.00019479,2]
[368731062,1751333451241,-460.0,0.00019479,2]
[368731063,1751333451251,-1043.15,0.00019479,2]
[368731064,1751333451260,-460.0,0.00019479,2]
[368731065,1751333451271,-1301.04,0.00019479,2]
[368731066,1751333451280,-460.0,0.00019479,2]
[368731067,1751333451290,-460.0,0.00019479,2]
[368731068,1751333451300,-460.0,0.00019479,2]
[368731069,1751333451310,-1360.87,0.00019479,2]
[368731070,1751333451320,-1189.69,0.00019479,2]
[368731071,1751333451332,-1804.67,0.00019479,2]
[368731072,1751333451341,-240.0,0.00019479,2]
[368731073,1751333451352,-637.8,0.00019479,2]
[368731074,1751333451362,-625.4,0.00019479,2]
[368731075,1751333451371,-460.0,0.00019479,2]
[368731076,1751333451382,-543.98,0.00019479,2]
[368731077,1751333451391,-460.0,0.00019479,2]
[368731078,1751333451400,-525.3,0.00019479,2]
[368731079,1751333451409,-199.74,0.00019479,2]
[368731080,1751333451419,-460.0,0.00019479,2]
[368731081,1751333451428,-368.73,0.00019479,2]
[368731082,1751333451438,-460.0,0.00019479,2]
[368731083,1751333451447,-460.0,0.00019479,2]
[368731084,1751333451457,-460.0,0.0001948,2]
[368731085,1751333451466,-542.96,0.0001948,2]
[368731086,1751333451476,-460.0,0.0001948,2]
[368731087,1751333451485,-460.0,0.0001948,2]
[368731088,1751333451497,-460.0,0.0001948,2]
[368731089,1751333451507,-460.0,0.0001948,2]
[368731090,1751333451517,-460.0,0.0001948,2]
[368731091,1751333451527,-460.0,0.0001948,2]
[368731092,1751333451540,-460.0,0.0001948,2]
[368731093,1751333451551,-1263.4,0.0001948,2]
[368731094,1751333451561,-460.0,0.0001948,2]
[368731095,1751333451571,-525.7,0.0001948,2]
[368731096,1751333451581,-1090.55,0.0001948,2]
[368731097,1751333451591,-1869.51,0.0001948,2]
[368731098,1751333451601,-460.0,0.0001948,2]
[368731099,1751333451612,-460.0,0.0001948,2]
[368731100,1751333451623,-460.0,0.0001948,2]
[368731101,1751333451633,-2252.18,0.0001948,2]
[368731102,1751333451644,-645.45,0.0001948,2]
[368731103,1751333451656,-761.24,0.0001948,2]
[368731104,1751333451665,-901.38,0.0001948,2]
[368731105,1751333451677,-160.0,0.00019485,2]
[368731106,1751333451688,-1016.14380917,0.0001951,2]
[368731107,1751333451699,-2276.97223143,0.00019521,2]
[368731108,1751333451709,-1000.0,0.00019544,2]
[368731109,1751333451718,-607.82,0.00019568,2]
[368731110,1751333451727,-460.0,0.00019568,2]
[368731111,1751333451737,-460.0,0.00019568,2]
[368731112,1751333451747,-460.0,0.00019568,2]
[368731113,1751333451756,-460.0,0.00019568,2]
[368731114,1751333451767,-460.0,0.00019568,2]
[368731115,1751333451776,-460.0,0.00019588,2]
[368731116,1751333451785,-460.0,0.00019588,2]
[368731117,1751333451795,-460.0,0.00019588,2]
[368731118,1751333451804,-460.0,0.00019588,2]
[368731119,1751333451813,-460.0,0.00019589,2]
[368731120,1751333451824,-460.0,0.00019589,2]
[368731121,1751333451833,-314.895407,0.00019589,2]
[368731122,1751333451843,-460.0,0.00019589,2]
[368731123,1751333451852,-460.0,0.00019589,2]
[368731124,1751333451863,-460.0,0.00019589,2]
[368731125,1751333451873,-460.0,0.00019589,2]
[368731126,1751333451883,-460.0,0.00019589,2]
[368731127,1751333451892,-168.0,0.00019627,2]
[368731128,1751333451901,-2276.97223143,0.00019728,2]
[368731129,1751333451910,-215.0738,0.00019743,2]
[368731130,1751333451920,-328.53,0.00019743,2]
[368731131,1751333451929,-711.31,0.00019743,2]
[368731132,1751333451940,-213.72,0.00019743,2]
[368731133,1751333451949,-1191.69,0.00019753,2]
[368731134,1751333451959,-460.0,0.00019753,2]
[368731135,1751333451969,-1043.15,0.00019753,2]
[368731136,1751333451979,-460.0,0.00019753,2]
[368731137,1751333451989,-1301.04,0.00019753,2]
[368731138,1751333451998,-460.0,0.00019753,2]
[368731139,1751333452008,-460.0,0.00019753,2]
[368731140,1751333452018,-509.68273381,0.00019753,2]
[368731141,1751333452028,-1360.87,0.00019753,2]
[368731142,1751333452037,-1189.69,0.00019753,2]
[368731143,1751333452048,-1804.67,0.00019753,2]
[368731144,1751333452058,-637.8,0.00019753,2]
[368731145,1751333452067,-625.4,0.00019753,2]
[368731146,1751333452077,-460.0,0.00019753,2]
[368731147,1751333452086,-199.87,0.00019753,2]
[368731148,1751333452096,-565.35,0.00019753,2]
[368731149,1751333452106,-460.0,0.00019753,2]
[368731150,1751333452115,-460.0,0.00019753,2]
[368731151,1751333452125,-460.0,0.00019754,2]
[368731152,1751333452135,-460.0,0.00019754,2]
[368731153,1751333452144,-460.0,0.00019754,2]
[368731154,1751333452154,-460.0,0.00019754,2]
[368731155,1751333452164,-460.0,0.00019754,2]
[368731156,1751333452173,-460.0,0.00019754,2]
[368731157,1751333452183,-1263.4,0.00019754,2]
[368731158,1751333452192,-460.0,0.00019754,2]
[368731159,1751333452201,-525.7,0.00019754,2]
[368731160,1751333452211,-1090.55,0.00019754,2]
[368731161,1751333452221,-1869.51,0.00019754,2]
[368731162,1751333452230,-460.0,0.00019754,2]
[368731163,1751333452239,-460.0,0.00019754,2]
[368731164,1751333452248,-2252.18,0.00019754,2]
[368731165,1751333452258,-645.45,0.00019754,2]
[368731166,1751333452267,-761.24,0.00019754,2]
[368731167,1751333452276,-901.38,0.00019754,2]
[368731168,1751333452286,-460.0,0.00019842,2]
[368731169,1751333452296,-460.0,0.00019842,2]
[368731170,1751333452306,-557.79,0.00019842,2]
[368731171,1751333452316,-460.0,0.00019842,2]
[368731172,1751333452326,-460.0,0.00019842,2]
[368731173,1751333452336,-460.0,0.00019862,2]
[368731174,1751333452346,-460.0,0.00019862,2]
[368731175,1751333452357,-460.0,0.00019862,2]
[368731176,1751333452368,-460.0,0.00019862,2]
[368731177,1751333452378,-460.0,0.00019863,2]
[368731178,1751333452388,-307.19,0.00019863,2]
[368731179,1751333452399,-460.0,0.00019863,2]
[368731180,1751333452408,-2276.97223143,0.00019934,2]
[368731181,1751333452417,-168.0,0.00019975,2]
[368731182,1751333452428,-711.31,0.00020017,2]
[368731183,1751333452438,-1191.69,0.00020027,2]
[368731184,1751333452448,-460.0,0.00020027,2]
[368731185,1751333452460,-1043.15,0.00020027,2]
[368731186,1751333452472,-554.79376928,0.00020027,2]
[368731187,1751333452481,-1301.04,0.00020027,2]
[368731188,1751333452493,-416.48,0.00020027,2]
[368731189,1751333452503,-460.0,0.00020027,2]
[368731190,1751333452514,-1360.87,0.00020027,2]
[368731191,1751333452523,-1189.69,0.00020027,2]
[368731192,1751333452533,-1804.67,0.00020027,2]
[368731193,1751333452546,-637.8,0.00020027,2]
[368731194,1751333452556,-625.4,0.00020027,2]
[368731195,1751333452565,-460.0,0.00020027,2]
[368731196,1751333452575,-460.0,0.00020027,2]
[368731197,1751333452585,-460.0,0.00020027,2]
[368731198,1751333452595,-460.0,0.00020028,2]
[368731199,1751333452605,-460.0,0.00020028,2]
[368731200,1751333452615,-460.0,0.00020028,2]
[368731201,1751333452626,-460.0,0.00020028,2]
[368731202,1751333452720,-460.0,0.00020028,2]
[368731203,1751333452730,-1263.4,0.00020028,2]
[368731204,1751333452739,-371.4434083,0.00020028,2]
[368731205,1751333452749,-525.7,0.00020028,2]
[368731206,1751333452758,-1090.55,0.00020028,2]
[368731207,1751333452767,-1869.51,0.00020028,2]
[368731208,1751333452777,-460.0,0.00020028,2]
[368731209,1751333452787,-460.0,0.00020028,2]
[368731210,1751333452797,-2252.18,0.00020028,2]
[368731211,1751333452807,-645.45,0.00020028,2]
[368731212,1751333452816,-761.24,0.00020028,2]
[368731213,1751333452825,-901.38,0.00020028,2]
[368731214,1751333452835,-420.0,0.00020049,2]
[368731215,1751333452844,-420.0,0.00020049,2]
[368731216,1751333452853,-1500.0,0.00020092,2]
[368731217,1751333452863,-500.0,0.00020109,2]
[368731218,1751333452872,-460.0,0.00020116,2]
[368731219,1751333452881,-460.0,0.00020116,2]
[368731220,1751333452891,-460.0,0.00020116,2]
[368731221,1751333452900,-460.0,0.00020116,2]
[368731222,1751333452909,-460.0,0.00020136,2]
[368731223,1751333452919,-460.0,0.00020136,2]
[368731224,1751333452928,-460.0,0.00020136,2]
[368731225,1751333452938,-406.51187598,0.00020136,2]
[368731226,1751333452947,-460.0,0.00020137,2]
[368731227,1751333452957,-2276.97223143,0.00020141,2]
[368731228,1751333452966,-1680.0,0.00020147,2]
[368731229,1751333452976,-314.675354,0.00020187,2]
[368731230,1751333452986,-160.287742,0.00020214,2]
[368731231,1751333452998,-711.31,0.00020291,2]
[368731232,1751333453008,-1191.69,0.00020301,2]
[368731233,1751333453018,-460.0,0.00020301,2]
[368731234,1751333453027,-1043.15,0.00020301,2]
[368731235,1751333453037,-1301.04,0.00020301,2]
[368731236,1751333453046,-460.0,0.00020301,2]
[368731237,1751333453056,-1360.87,0.00020301,2]
[368731238,1751333453065,-1189.69,0.00020301,2]
[368731239,1751333453074,-1804.67,0.00020301,2]
[368731240,1751333453084,-637.8,0.00020301,2]
[368731241,1751333453093,-625.4,0.00020301,2]
[368731242,1751333453102,-460.0,0.00020301,2]
[368731243,1751333453112,-460.0,0.00020301,2]
[368731244,1751333453121,-460.0,0.00020301,2]
[368731245,1751333453131,-460.0,0.00020302,2]
[368731246,1751333453140,-460.0,0.00020302,2]
[368731247,1751333453150,-460.0,0.00020302,2]
[368731248,1751333453159,-460.0,0.00020302,2]
[368731249,1751333453169,-460.0,0.00020302,2]
[368731250,1751333453179,-1263.4,0.00020302,2]
[368731251,1751333453188,-525.7,0.00020302,2]
[368731252,1751333453197,-1090.55,0.00020302,2]
[368731253,1751333453207,-1869.51,0.00020302,2]
[368731254,1751333453217,-460.0,0.00020302,2]
[368731255,1751333453226,-380.33304638,0.00020302,2]
[368731256,1751333453236,-2252.18,0.00020302,2]
[368731257,1751333453246,-645.45,0.00020302,2]
[368731258,1751333453256,-761.24,0.00020302,2]
[368731259,1751333453265,-901.38,0.00020302,2]
[368731260,1751333453275,-217.0,0.00020319,2]
[368731261,1751333453285,-2276.97223143,0.00020348,3]
[368731262,1751333453294,-460.0,0.0002039,2]
[368731263,1751333453304,-364.65,0.0002039,2]
[368731264,1751333453313,-448.30142813,0.0002039,2]
[368731265,1751333453323,-460.0,0.0002039,2]
[368731266,1751333453332,-460.0,0.0002041,2]
[368731267,1751333453342,-460.0,0.00020411,2]
[368731268,1751333453351,-359.952,0.00020462,2]
[368731269,1751333453368,-223.56,0.0002048,2]
[368731270,1751333453388,-500.0,0.00020547,14]
[368731271,1751333453405,-177.5677436,0.00020548,2]
[368731272,1751333453422,-850.8132279,0.00020548,2]
[368731273,1751333453440,-2276.97223143,0.00020555,3]
[368731274,1751333453459,-711.31,0.00020565,2]
[368731275,1751333453478,-217.0,0.00020568,2]
[368731276,1751333453497,-1191.69,0.00020575,2]
[368731277,1751333453512,-460.0,0.00020575,2]
[368731278,1751333453529,-1043.15,0.00020575,2]
[368731279,1751333453550,-1301.04,0.00020575,2]
[368731280,1751333453564,-460.0,0.00020575,2]
[368731281,1751333453580,-1360.87,0.00020575,2]
[368731282,1751333453594,-1189.69,0.00020575,2]
[368731283,1751333453613,-1804.67,0.00020575,2]
[368731284,1751333453630,-637.8,0.00020575,2]
[368731285,1751333453648,-625.4,0.00020575,2]
[368731286,1751333453666,-460.0,0.00020575,2]
[368731287,1751333453678,-460.0,0.00020575,2]
[368731288,1751333453691,-460.0,0.00020575,2]
[368731289,1751333453710,-159.266168,0.00020575,2]
[368731290,1751333453726,-575.2177202,0.00020575,2]
[368731291,1751333453739,-306.7321048,0.00020575,2]
[368731292,1751333453757,-340.32,0.00020576,2]
[368731293,1751333453771,-460.0,0.00020576,2]
[368731294,1751333453783,-460.0,0.00020576,2]
[368731295,1751333453799,-460.0,0.00020576,2]
[368731296,1751333453813,-154.8453056,0.00020576,2]
[368731297,1751333453827,-1263.4,0.00020576,2]
[368731298,1751333453841,-525.7,0.00020576,2]
[368731299,1751333453855,-1090.55,0.00020576,2]
[368731300,1751333453870,-1869.51,0.00020576,2]
[368731301,1751333453884,-460.0,0.00020576,2]
[368731302,1751333453898,-2252.18,0.00020576,2]
[368731303,1751333453912,-645.45,0.00020576,2]
[368731304,1751333453926,-761.24,0.00020576,2]
[368731305,1751333453940,-901.38,0.00020576,2]
[368731306,1751333453955,-3501.67,0.000206,2]
[368731307,1751333453969,-2000.0,0.0002064,2]
[368731308,1751333453983,-968.222,0.00020659,2]
[368731309,1751333453997,-460.0,0.00020664,2]
[368731310,1751333454012,-460.0,0.00020664,2]
[368731311,1751333454027,-460.0,0.00020684,2]
[368731312,1751333454043,-460.0,0.00020685,2]
[368731313,1751333454057,-1000.0,0.0002071,5]
[368731314,1751333454066,-168.0,0.00020732,2]
[368731315,1751333454076,-2276.97223143,0.00020762,3]
[368731316,1751333454085,-168.0,0.00020796,2]
[368731317,1751333454095,-711.31,0.00020839,2]
[368731318,1751333454104,-1191.69,0.00020849,2]
[368731319,1751333454114,-460.0,0.00020849,2]
[368731320,1751333454124,-1043.15,0.00020849,2]
[368731321,1751333454133,-1301.04,0.00020849,2]
[368731322,1751333454144,-460.0,0.00020849,2]
[368731323,1751333454154,-1360.87,0.00020849,2]
[368731324,1751333454166,-1189.69,0.00020849,2]
[368731325,1751333454176,-1804.67,0.00020849,2]
[368731326,1751333454186,-637.8,0.00020849,2]
[368731327,1751333454196,-625.4,0.00020849,2]
[368731328,1751333454206,-460.0,0.00020849,2]
[368731329,1751333454215,-189.75,0.00020849,2]
[368731330,1751333454225,-204.33438141,0.00020849,2]
[368731331,1751333454234,-196.41,0.0002085,2]
[368731332,1751333454244,-460.0,0.0002085,2]
[368731333,1751333454254,-460.0,0.0002085,2]
[368731334,1751333454263,-1263.4,0.0002085,2]
[368731335,1751333454274,-525.7,0.0002085,2]
[368731336,1751333454284,-1090.55,0.0002085,2]
[368731337,1751333454293,-1869.51,0.0002085,2]
[368731338,1751333454497,-460.0,0.0002085,2]
[368731339,1751333454517,-2252.18,0.0002085,2]
[368731340,1751333454528,-645.45,0.0002085,2]
[368731341,1751333454542,-761.24,0.0002085,2]
[368731342,1751333454552,-901.38,0.0002085,2]
[368731343,1751333454562,-151.0,0.000209,4]
[368731344,1751333454571,-218.0,0.00020924,2]
[368731345,1751333454581,-168.0,0.0002093,2]
[368731346,1751333454591,-460.0,0.00020938,2]
[368731347,1751333454600,-460.0,0.00020938,2]
[368731348,1751333454610,-168.0,0.00020958,2]
[368731349,1751333454620,-460.0,0.00020958,2]
[368731350,1751333454629,-460.0,0.00020959,2]
[368731351,1751333454639,-2276.97223143,0.00020969,4]
[368731352,1751333454648,-10000.0,0.00021,5]
[368731353,1751333454657,-47732.7654324,0.00021,7]
[368731354,1751333454667,-213.84631524,0.00021,7]
[368731355,1751333454677,-847.41730813,0.00021,7]
[368731356,1751333454687,-500.0,0.00021095,15]
[368731357,1751333454696,-223.0315306,0.00021112,2]
[368731358,1751333454705,-711.31,0.00021113,2]
[368731359,1751333454715,-1191.69,0.00021123,2]
[368731360,1751333454725,-460.0,0.00021123,2]
[368731361,1751333454735,-1043.15,0.00021123,2]
[368731362,1751333454744,-1301.04,0.00021123,2]
[368731363,1751333454753,-460.0,0.00021123,2]
[368731364,1751333454763,-1360.87,0.00021123,2]
[368731365,1751333454773,-1189.69,0.00021123,2]
[368731366,1751333454782,-1804.67,0.00021123,2]
[368731367,1751333454792,-637.8,0.00021123,2]
[368731368,1751333454801,-625.4,0.00021123,2]
[368731369,1751333454812,-460.0,0.00021123,2]
[368731370,1751333454821,-460.0,0.00021124,2]
[368731371,1751333454831,-421.72,0.00021124,2]
[368731372,1751333454840,-1263.4,0.00021124,2]
[368731373,1751333454850,-525.7,0.00021124,2]
[368731374,1751333454859,-1090.55,0.00021124,2]
[368731375,1751333454869,-1869.51,0.00021124,2]
[368731376,1751333454879,-460.0,0.00021124,2]
[368731377,1751333454889,-2252.18,0.00021124,2]
[368731378,1751333454900,-645.45,0.00021124,2]
[368731379,1751333454910,-761.24,0.00021124,2]
[368731380,1751333454920,-901.38,0.00021124,2]
[368731381,1751333454930,-2276.97223143,0.00021176,4]
[368731382,1751333454942,-500.0,0.00021182,2]
[368731383,1751333454951,-2500.0,0.00021188,2]
[368731384,1751333454961,-460.0,0.00021212,2]
[368731385,1751333454970,-460.0,0.00021232,2]
[368731386,1751333454979,-374.37745986,0.00021233,2]
[368731387,1751333454990,-620.55847114,0.00021333,2]
[368731388,1751333454999,-12500.0,0.00021361,2]
[368731389,1751333455009,-2276.97223143,0.00021383,5]
[368731390,1751333455020,-711.31,0.00021387,2]
[368731391,1751333455029,-1191.69,0.00021397,2]
[368731392,1751333455041,-460.0,0.00021397,2]
[368731393,1751333455050,-1043.15,0.00021397,2]
[368731394,1751333455059,-1301.04,0.00021397,2]
[368731395,1751333455070,-171.87,0.00021397,2]
[368731396,1751333455080,-1189.69,0.00021397,2]
[368731397,1751333455090,-1360.87,0.00021397,2]
[368731398,1751333455099,-1804.67,0.00021397,2]
[368731399,1751333455109,-637.8,0.00021397,2]
[368731400,1751333455118,-625.4,0.00021397,2]
[368731401,1751333455127,-460.0,0.00021397,2]
[368731402,1751333455137,-460.0,0.00021398,2]
[368731403,1751333455146,-1263.4,0.00021398,2]
[368731404,1751333455156,-525.7,0.00021398,2]
[368731405,1751333455166,-1090.55,0.00021398,2]
[368731406,1751333455175,-1869.51,0.00021398,2]
[368731407,1751333455185,-460.0,0.00021398,2]
[368731408,1751333455195,-2252.18,0.00021398,2]
[368731409,1751333455205,-645.45,0.00021398,2]
[368731410,1751333455214,-761.24,0.00021398,2]
[368731411,1751333455224,-456.45344235,0.0002145,3]
[368731412,1751333455234,-460.0,0.00021486,2]
[368731413,1751333455243,-151.0,0.000215,4]
[368731414,1751333455253,-460.0,0.00021506,2]
[368731415,1751333455263,-168.0,0.00021515,2]
[368731416,1751333455273,-151.0,0.00021527,5]
[368731417,1751333455283,-419.262,0.00021549,2]
[368731418,1751333455295,-423.35,0.00021549,2]
[368731419,1751333455305,-1180.134275,0.0002156,4]
[368731420,1751333455314,-168.0,0.00021569,2]
[368731421,1751333455324,-2276.97223143,0.0002159,5]
[368731422,1751333455334,-224.72816492,0.00021643,16]
[368731423,1751333455343,-4292.21549551,0.00021644,2]
[368731424,1751333455352,-711.31,0.00021661,2]
[368731425,1751333455362,-1191.69,0.00021671,2]
[368731426,1751333455372,-460.0,0.00021671,2]
[368731427,1751333455382,-1043.15,0.00021671,2]
[368731428,1751333455392,-1301.04,0.00021671,2]
[368731429,1751333455403,-1189.69,0.00021671,2]
[368731430,1751333455413,-1360.87,0.00021671,2]
[368731431,1751333455423,-1804.67,0.00021671,2]
[368731432,1751333455433,-637.8,0.00021671,2]
[368731433,1751333455444,-625.4,0.00021671,2]
[368731434,1751333455454,-460.0,0.00021671,2]
[368731435,1751333455464,-460.0,0.00021672,2]
[368731436,1751333455475,-1263.4,0.00021672,2]
[368731437,1751333455486,-525.7,0.00021672,2]
[368731438,1751333455495,-1090.55,0.00021672,2]
[368731439,1751333455505,-1869.51,0.00021672,2]
[368731440,1751333455515,-460.0,0.00021672,2]
[368731441,1751333455524,-2252.18,0.00021672,2]
[368731442,1751333455534,-645.45,0.00021672,2]
[368731443,1751333455548,-761.24,0.00021672,2]
[368731444,1751333455558,-3501.67,0.000217,2]
[368731445,1751333455568,-1000.0,0.0002173,2]
[368731446,1751333455579,-3000.0,0.00021736,2]
[368731447,1751333455590,-572.67559468,0.0002176,2]
[368731448,1751333455601,-460.0,0.0002178,2]
[368731449,1751333455611,-168.0,0.00021788,2]
[368731450,1751333455621,-2276.97223143,0.00021797,6]
[368731451,1751333455632,-151.0,0.000218,3]
[368731452,1751333455642,-151.0,0.00021836,5]
[368731453,1751333455651,-285.0,0.00021867,2]
[368731454,1751333455661,-587.0,0.00021867,2]
[368731455,1751333455671,-3983.72003172,0.00021899,2]
[368731456,1751333455682,-500.0,0.00021917,2]
[368731457,1751333455694,-460.0,0.00021917,2]
[368731458,1751333455705,-460.0,0.00021917,2]
[368731459,1751333455714,-460.0,0.00021917,2]
[368731460,1751333455723,-502.03928275,0.00021917,2]
[368731461,1751333455732,-500.0,0.00021917,2]
[368731462,1751333455741,-500.0,0.00021917,2]
[368731463,1751333455750,-500.0,0.00021917,2]
[368731464,1751333455760,-500.0,0.00021917,2]
[368731465,1751333455769,-500.0,0.00021917,2]
[368731466,1751333455781,-500.0,0.00021917,2]
[368731467,1751333455790,-500.0,0.00021917,2]
[368731468,1751333455801,-500.0,0.00021917,2]
[368731469,1751333455811,-500.0,0.00021917,2]
[368731470,1751333455821,-500.0,0.00021917,2]
[368731471,1751333455832,-500.0,0.00021917,2]
[368731472,1751333455841,-500.0,0.00021917,2]
[368731473,1751333455851,-500.0,0.00021917,2]
[368731474,1751333455860,-1317.7223025,0.00021918,7]
[368731475,1751333455870,-481.33963642,0.00021918,7]
[368731476,1751333455879,-150.0,0.00021918,2]
[368731477,1751333455889,-711.31,0.00021935,2]
[368731478,1751333455900,-1191.69,0.00021945,2]
[368731479,1751333455909,-460.0,0.00021945,2]
[368731480,1751333455919,-1043.15,0.00021945,2]
[368731481,1751333455930,-1301.04,0.00021945,2]
[368731482,1751333455940,-1189.69,0.00021945,2]
[368731483,1751333455950,-1360.87,0.00021945,2]
[368731484,1751333455960,-1804.67,0.00021945,2]
[368731485,1751333455970,-637.8,0.00021945,2]
[368731486,1751333455980,-625.4,0.00021945,2]
[368731487,1751333455989,-460.0,0.00021945,2]
[368731488,1751333455999,-460.0,0.00021946,2]
[368731489,1751333456008,-1263.4,0.00021946,2]
[368731490,1751333456020,-525.7,0.00021946,2]
[368731491,1751333456030,-1090.55,0.00021946,2]
[368731492,1751333456040,-1869.51,0.00021946,2]
[368731493,1751333456049,-460.0,0.00021946,2]
[368731494,1751333456059,-2252.18,0.00021946,2]
[368731495,1751333456068,-645.45,0.00021946,2]
[368731496,1751333456077,-761.24,0.00021946,2]
[368731497,1751333456087,-800.0,0.00021955,2]
[368731498,1751333456096,-500.0,0.00021973,2]
[368731499,1751333456105,-500.0,0.00021973,2]
[368731500,1751333456115,-508.01447442,0.00021973,2]
[368731501,1751333456125,-500.0,0.00021973,2]
[368731502,1751333456135,-500.0,0.00021973,2]
[368731503,1751333456144,-500.0,0.00021973,2]
[368731504,1751333456153,-500.0,0.00021973,2]
[368731505,1751333456163,-311.95562575,0.00021973,2]
[368731506,1751333456172,-500.0,0.00021973,2]
[368731507,1751333456182,-500.0,0.00021973,2]
[368731508,1751333456194,-500.0,0.00021973,2]
[368731509,1751333456204,-500.0,0.00021973,2]
[368731510,1751333456213,-500.0,0.00021973,2]
[368731511,1751333456223,-500.0,0.00021973,2]
[368731512,1751333456233,-500.0,0.00021973,2]
[368731513,1751333456241,-500.0,0.00021973,2]
[368731514,1751333456251,-500.0,0.00021973,2]
[368731515,1751333456260,-500.32963069,0.00021973,2]
[368731516,1751333456269,-500.0,0.00021973,2]
[368731517,1751333456279,-552.96391721,0.00021973,2]
[368731518,1751333456289,-500.0,0.00021973,2]
[368731519,1751333456299,-500.92946292,0.00021973,2]
[368731520,1751333456310,-500.0,0.00021973,2]